Cogmind - Beta 16 @@@ ROGUE MODE // 2025.10.26 @ 17:13:54 Player: Lazz Result: Destroyed by D-53 Grenadier with Mini Grenade Launcher Performance ------------- Evolutions (0) 0 Regions Visited (2) 400 Robots Destroyed (20) 100 Value Destroyed (578) 578 Prototype IDs (1) 20 Alien Tech Used (0) 0 Bonus (0) 0 TOTAL SCORE: 1098 Bonus ------- None Cogmind --------- Core Integrity 0/250 Matter 300/300 Energy 100/100 System Corruption 0% Temperature Cool (0) Movement Core (400) Ox7 Location -10/Mines Parts ------- > --- POWER (1) -------- (None) > --- PROPULSION (2) --- (None) > --- UTILITY (2) ------ Large Storage Unit Targeting Computer > --- WEAPON (2) ------- Improved Assault Rifle > --- INVENTORY (15) --- Ion Engine Light Nuclear Core Aluminum Leg Aluminum Leg Aluminum Leg Aluminum Leg Targeting Computer Targeting Computer Thief Drone Bay Heavy Assault Rifle Heavy Assault Rifle Heavy Assault Rifle Heavy Assault Rifle Grenade Launcher Grenade Launcher Peak State ------------ > --- POWER ------------ Light Ion Engine > --- PROPULSION ------- Aluminum Leg Aluminum Leg > --- UTILITY ---------- Large Storage Unit Targeting Computer > --- WEAPON ----------- Improved Assault Rifle Improved Assault Rifle > --- INVENTORY -------- Ion Engine Aluminum Leg Targeting Computer Targeting Computer Heavy Assault Rifle Heavy Assault Rifle Heavy Assault Rifle Heavy Assault Rifle Improved Assault Rifle Improved Assault Rifle Grenade Launcher Grenade Launcher [Rating: 13] Favorites ----------- Power Ion Engine Engine Ion Engine Propulsion Aluminum Leg Leg Aluminum Leg Utility Targeting Computer Storage Large Storage Unit Processor Targeting Computer Weapon Improved Assault Rifle Energy Gun Small Laser Ballistic Gun Improved Assault Rifle Build | -11 -10 -10 ------- Run | Yrd Mat Min Slots Evolved . | . . . Power . | . . . Propulsion . | . . . Utility . | . . . Weapon . | . . . Parts Attached 24 | 4 16 4 Power 5 | 1 3 1 Engine 5 | 1 3 1 Core . | . . . Reactor . | . . . Propulsion 8 | 1 6 1 Treads . | . . . Leg 8 | 1 6 1 Wheel . | . . . Hover . | . . . Flight . | . . . Utility 3 | 1 2 . Device . | . . . Storage 2 | 1 1 . Processor 1 | . 1 . Hackware . | . . . Protection . | . . . Artifact . | . . . Weapon 8 | 1 5 2 Energy Gun 1 | 1 . . Energy Cannon . | . . . Ballistic Gun 7 | . 5 2 Ballistic Cannon . | . . . Launcher . | . . . Special Weapon . | . . . Impact Weapon . | . . . Slashing Weapon . | . . . Piercing Weapon . | . . . Special Melee Weapon . | . . . Unidentified Prototypes 1 | . 1 . Parts Lost 5 | . 1 4 Power 2 | . 1 1 Propulsion 2 | . . 2 Utility . | . . . Weapon 1 | . . 1 Highest Loss Streak 4 | . 1 4 To Critical Strikes . | . . . Average Backups 9 | 2 8 12 Power . | . . 1 Propulsion 1 | 1 1 2 Utility 1 | . 1 2 Weapon 4 | 1 4 6 Tool/Special . | . . . Unused Backups 17 | . 4 13 Power 2 | . . 2 Propulsion 4 | . 2 2 Utility 3 | . . 3 Weapon 8 | . 2 6 Tool/Special . | . . . Average Slot Usage (%) 97 | . 95 99 Engine 13 | . 13 14 Leg 27 | . 28 27 Storage 14 | . 14 14 Processor 12 | . 11 14 Ballistic Gun 26 | . 25 27 Peak Build Rating 13 | 4 13 13 Average Rating 10 | 3 9 12 On Entrance 5 | . 4 13 Avg Prop Armor Cover (%) . | . . . Naked Turns . | . . . Heaviest Build 31 | 11 31 31 Greatest Support 20 | 10 20 20 Greatest Overweight (x) 2 | 1 1 2 Average Overweight (x) . | . . 1 Largest Inventory Capacity 15 | 8 15 15 Average Capacity 11 | 7 10 15 Most Carried 15 | 6 13 15 Average Carried 9 | 3 8 12 Final Capacity 15 | 8 15 15 Final Carried 15 | 6 13 15 Class Distribution -------------------- 100% | Mutant Dominant Class ---------------- Mutant | -10/Materials Mutant | -10/Mines Resources | -11 -10 -10 ----------- Run | Yrd Mat Min Matter Collected 615 | 130 348 137 Remotely . | . . . Salvage Created 602 | . 435 167 Parts 34 | . 28 6 Haulers Intercepted 1 | . 1 . Recyclers Shooed . | . . . Parts Field Recycled . | . . . Retrieved Matter . | . . . Parts Self-Destructed . | . . . Prevented . | . . . Parts Restored . | . . . Kills | -11 -10 -10 ------- Run | Yrd Mat Min Combat Hostiles Destroyed 18 | . 13 5 Guns 17 | . 12 5 AOE 1 | . 1 . Classes Destroyed 5 | . 4 1 Hauler 1 | . 1 . Watcher 1 | . 1 . Swarmer 5 | . 5 . Grunt 12 | . 8 4 Demolisher 1 | . . 1 Best Kill Streak 3 | . 3 2 Combat Bots Only 3 | . 3 2 Max Kills in Single Turn 1 | . 1 1 Gunslinging . | . . . Exploded 1 | . 1 . Melee . | . . . Uniques/NPCs Destroyed . | . . . Combat | -11 -10 -10 -------- Run | Yrd Mat Min Hostile Shots Fired 86 | . 66 20 Missed 21 | . 17 4 Hits 65 | . 49 16 Projectile 65 | . 49 16 AOE 14 | . . 14 Damage Taken 1331 | . 760 571 Core 263 | . 134 129 Absorbed by Shields . | . . . Core Remaining (%) 100 | 100 . . Volleys Fired 59 | . 51 8 Largest 2 | . 2 2 Hottest 46 | . 46 46 Shots Fired 107 | . 91 16 Gun 107 | . 91 16 Cannon . | . . . Launcher . | . . . Special . | . . . Kinetic 96 | . 80 16 Thermal 11 | . 11 . Explosive . | . . . Electromagnetic . | . . . Robot Hit Streak 21 | . 21 8 Robot Miss Streak 4 | . 4 1 Penetration Max . | . . . Secondary Targets 1 | . . 1 Max Gunslinging Chain 1 | . . 1 Shots Hit Robots 73 | . 60 13 Core Hits 36 | . 28 8 Critical Kills . | . . . Critical Parts Destroyed . | . . . Critical Strikes . | . . . Melee Attacks . | . . . Impact . | . . . Slashing . | . . . Piercing . | . . . Sneak Attacks . | . . . Combat Hostiles . | . . . Follow-up Attacks . | . . . Damage Inflicted 973 | . 779 194 Guns 862 | . 668 194 Cannons . | . . . Explosions 111 | . 111 . Melee . | . . . Ramming . | . . . Kinetic 797 | . 603 194 Thermal 65 | . 65 . Explosive 111 | . 111 . Electromagnetic . | . . . Impact . | . . . Slashing . | . . . Piercing . | . . . Highest Corruption . | . . . Average Corruption . | . . . Corruption Purged . | . . . Corruption Blocked . | . . . Overload Shots . | . . . Overflow Damage . | . . . Projectiles . | . . . Explosions . | . . . Melee . | . . . Knockbacks . | . . . Impact . | . . . Kinetic . | . . . Secondary . | . . . Self-Inflicted Damage 113 | . 113 . Shots 1 | . 1 . Rammed . | . . . Targets Rammed . | . . . Kicked . | . . . Crushed . | . . . Highest Temperature 24 | . 24 4 Average Temperature 6 | . 7 2 Received Heat Transfer 252 | . 213 39 Siege Activations . | . . . Martial Activations . | . . . Shielding Activations . | . . . Robots Disrupted . | . . . Combat Hostiles . | . . . Robots Corrupted . | . . . Combat Hostiles . | . . . Parts Fried . | . . . Impact Corruptions . | . . . Robots Melted . | . . . Combat Hostiles . | . . . Parts Melted 1 | . 1 . Heat Transferred 150 | . 150 . Parts Sabotaged . | . . . Parts Stolen . | . . . Parts Stripped . | . . . Power Chain Reactions . | . . . Alert | -11 -10 -10 ------- Run | Yrd Mat Min Maximum Alert Level . | . . . Low Security (%) 100 | 100 100 100 Level 1 . | . . . Level 2 . | . . . Level 3 . | . . . Level 4 . | . . . Level 5 . | . . . High Security . | . . . Max Security . | . . . Peak Influence 129 | . 129 60 Initial 45 | . . 45 Average 23 | . 26 18 Influence Increases 563 | . 433 130 Destroy 0b10 Robot/C 360 | . 260 100 Destroy 0b10 Robot/NC 10 | . 10 . Destroy Leader 84 | . 54 30 Successful Hack 16 | . 16 . Select Force Hacks 30 | . 30 . Disable Machine 15 | . 15 . Destroy Structure 33 | . 33 . Lose Combat Pursuer 15 | . 15 . Influence Decreases 563 | . 316 247 Entered New Map 72 | . . 72 Time Decay 447 | . 306 141 Lost Part 44 | . 10 34 Squads Dispatched 2 | . 2 . Investigation 2 | . 2 . Extermination . | . . . Reinforcement . | . . . Assault . | . . . Garrison . | . . . Intercept . | . . . Searches Triggered . | . . . Construction Impeded . | . . . Haulers Reinforced . | . . . Active Scanning Responses . | . . . Cargo Convoy Interrupts . | . . . Stealth | -11 -10 -10 --------- Run | Yrd Mat Min Distress Signals 3 | . 2 1 Communications Jammed . | . . . Distress Signals . | . . . Times Spotted 30 | . 24 6 Peak Tracking Total 4 | . 4 2 Tactical Retreats 1 | . 1 . Traps | -11 -10 -10 ------- Run | Yrd Mat Min Traps Triggered 1 | . 1 . Indirectly . | . . . Trap Hack Attempts . | . . . Triggered . | . . . Disarmed . | . . . Reprogrammed . | . . . Reused . | . . . Traps Extracted . | . . . Installed . | . . . Triggered . | . . . Machines | -11 -10 -10 ---------- Run | Yrd Mat Min Machines Disabled 1 | . 1 . Max in Single Turn 1 | . 1 . Machines Repaired . | . . . Machines Dismantled . | . . . Machines Sabotaged . | . . . Overloaded Fab Kills . | . . . Hacking | -11 -10 -10 --------- Run | Yrd Mat Min Machines Accessed 10 | . 9 1 Terminals 7 | . 7 . Fabricators . | . . . Repair Stations . | . . . Recycling Units 2 | . 2 . Scanalyzers . | . . . Garrison Access . | . . . Total Hacks 19 | . 18 1 Successful 8 | . 7 1 Failed 11 | . 11 . Catastrophic 4 | . 4 . Database Lockouts . | . . . Manual 12 | . 12 . Terminals 15 | . 15 . Fabricators . | . . . Repair Stations . | . . . Recycling Units 3 | . 3 . Scanalyzers . | . . . Garrison Access . | . . . Terminal Hacks 4 | . 3 1 Robot Analysis 1 | . 1 . Open Door 1 | . . 1 Level Access Points 1 | . 1 . Branch Access Points 1 | . 1 . Fabricator Hacks . | . . . Repair Station Hacks . | . . . Recycling Unit Hacks 2 | . 2 . Recycle Component 1 | . 1 . Report Inventory 1 | . 1 . Scanalyzer . | . . . Garrison Access Hacks . | . . . Unauthorized Hacks 2 | . 2 . Terminals 1 | . 1 . Assimilate 1 | . 1 . Fabricators . | . . . Repair Stations . | . . . Recycling Units 1 | . 1 . Tunnel 1 | . 1 . Scanalyzers . | . . . Garrison Access . | . . . Data Cores Recovered . | . . . Used . | . . . Hacking Detections 6 | . 6 . Full Trace Events 1 | . 1 . Feedback Events . | . . . Feedback Blocked . | . . . Robot Schematics Acquired . | . . . Robots Built . | . . . Authchips . | . . . Time . | . . . Total Robot Build Rating . | . . . Part Schematics Acquired . | . . . Parts Built . | . . . Authchips . | . . . Time . | . . . Total Part Build Rating . | . . . Part Studies Acquired . | . . . Parts Repaired . | . . . Time . | . . . Parts Recycled 1 | . 1 . Recycled Matter . | . . . Retrieved Matter . | . . . Retrieved Components . | . . . Parts Scanalyzed . | . . . Part Schematics Acquired . | . . . Parts Damaged . | . . . Bothacking | -11 -10 -10 ------------ Run | Yrd Mat Min Used RIF Installer . | . . . Robots Hacked . | . . . Non-combat . | . . . Combat . | . . . Robot Hacks Applied . | . . . Relay Couplers Released . | . . . Fabnet Peak Effective % . | . . . Robots Rewired . | . . . Allies Hacked . | . . . Hacks Repelled . | . . . Allies | -11 -10 -10 -------- Run | Yrd Mat Min Total Allies . | . . . Largest Group . | . . . Highest-Rated Group . | . . . Highest-Rated Ally . | . . . Total Orders . | . . . Ally Attacks . | . . . Total Damage . | . . . Kills . | . . . Allies Corrupted . | . . . Allies Melted . | . . . Intel | -11 -10 -10 ------- Run | Yrd Mat Min Active Infowar (turns) . | . . . Robot Analysis Total 1 | . 1 . Derelict Logs Recovered 1 | . . 1 Drone Launches . | . . . Drone Recoveries . | . . . Exploration | -11 -10 -10 ------------- Run | Yrd Mat Min Turns Passed 1800 | 83 1187 530 Spaces Moved 1000 | 41 709 250 Core 4 | 4 . . Treads . | . . . Legs 996 | 37 709 250 Wheels . | . . . Hover . | . . . Flight . | . . . Fastest Speed 50 | 50 120 190 Average Speed 154 | 174 140 190 Slowest Speed 260 | 190 190 260 Overloaded Moves . | . . . Propulsion Burnouts . | . . . Robots Hopped . | . . . Potential Cave-ins . | . . . Cave-ins Triggered . | . . . Exploration Rate (%) 47 | 4 82 57 Regions Visited 2 Branch Regions 1 Pre-discovered Areas 1 | . 1 . Known Exits Taken 1 | . 1 . Unknown Exits Taken 1 | 1 . . Scrap Searched . | . . . Spaces Dug . | . . . Terrain Destroyed 31 | . 31 . Melee . | . . . Projectile . | . . . AOE 31 | . 31 . Terrain Rammed . | . . . Walls Destroyed . | . . . Machines Disabled . | . . . Actions | -11 -10 -10 --------- Run | Yrd Mat Min Total 1165 | 51 825 289 Wait 42 | 1 20 21 Move 998 | 40 708 250 Hop . | . . . Pick Up 25 | 6 16 3 Fast Attach 6 | 4 2 . Attach 4 | . 4 . Detach . | . . . Swap 14 | . 10 4 Drop 17 | . 14 3 Fire 59 | . 51 8 Melee . | . . . Ram . | . . . Kick . | . . . Crush . | . . . Escape Stasis . | . . . Rewire . | . . . Trap . | . . . Miscellaneous . | . . . Route ------- -11/Scrapyard -10/Materials (discovered 6 exits: *Mat x3 / *Min x2 / [*Sub]) -10/Mines (discovered 2 exits: *Mat x2) History --------- Turn | Location | Event 38 | -11/Scrapyard | Discovered new exit (range 15) 84 | -11/Scrapyard | Entered Materials 331 | -10/Materials | Build established: Mutant 341 | -10/Materials | Discovered new exit (range 14) 589 | -10/Materials | Discovered new exit (range 8) 661 | -10/Materials | Discovered new exit (range 10) 779 | -10/Materials | Identified exit to Materials 1204 | -10/Materials | Core integrity fell below 50% 1229 | -10/Materials | Discovered new exit (range 14) 1246 | -10/Materials | Identified exit to Mines 1271 | -10/Materials | Entered Mines 1281 | -10/Mines | Met a Derelict bent on vengeance 1323 | -10/Mines | Discovered exit to Materials (range 5) 1377 | -10/Mines | Found the Drone Emporium 1384 | -10/Mines | Found Prototype Device 1444 | -10/Mines | Learned Materials security intel 1699 | -10/Mines | Discovered exit to Materials (range 6) 1761 | -10/Mines | Assembled infested the area 1766 | -10/Mines | Assisted by a Guerilla fighting off Assembled 1791 | -10/Mines | Core integrity fell below 20% 1801 | -10/Mines | Destroyed by D-53 Grenadier with Mini Grenade Launcher Last Messages --------------- come on!" AC-PNL(h): "I'll hold them off! Go on ahead or try to find another way!" U-05 Engineer lays Concrete. HV Slug penetrates Wall. AC-PNL(h) destroyed. U-05 Engineer builds a Wall. U-05 Engineer destroyed. The unstable cave ceiling collapses. U-05 Engineer destroyed. R-06 Scavenger destroyed. The unstable cave ceiling collapses. D-53 Grenadier destroyed. Switching to secondary target: D-53 Grenadier. The unstable cave ceiling collapses. Imp. Assault Rifle destroyed. Aluminum Leg destroyed. The unstable cave ceiling collapses. Ion Engine destroyed. Aluminum Leg destroyed. Map ----- +----------------------------------------------------+ | #?????????# ##???# #????###????????# ### | | #????????? #???# #???????????????## ##?# ## | | ##???????# #???# #????????????????###?????## | | ######## #??? #?????????????????????????## | | """ ???? ??????????????????????????? | | """ ???? ??????????????????????????? | | ###### ### """ ???? #??????????????????????????? | | ?????# ##??? ??? ???????????????????????????? | | ????## ##???? ##?? ????????????????############ | | ???## #????? #??? ????????????????# | | #### #?????#???? ????????????##### ########## | | """ #?????????? ????????????# #????????? | | """ #????????????????????????# ####????????? | | #### """ #??????????????????????##% #???????????? | | ???# """ #???###?##????????????## ###?????????? | | ??? #???# ## ???????######$ ##????????? | | ??# < ??# ??????# #???###### | | ??## #?# ??????# #???# | | ???#### ## ?????# ##### ##?### #### | | ???????# #????# #???### ##?## ###? | | ???????? ##### #?????# #?## ## | | ????????? #?# ####??# ### # | | ###?????? #### #### ## # | | #???????##?# % # | | ????????????# # ##### % | | ? #?????????????# % d@ ##???## | | ??#??????????????# ##??# | | ?????????????????# # #??## ## # | | ????????????????????## #???########## | | ?????????????????????#### #????????????? | | ????????????????????????## t #????????????? | | ?????????????????????????# * # ########?????? | | ?????????????????????????## #??? | | ?????????????????????????### r #??? | | ?????????????????????????# # #########??????? | | ????????????????????????# ####??????????????? | | ???????????????????????# ####?????????????????? | | ??????????????????????# #?????????????????????? | | ??????????????????????# ??????????????????????? | | ????????????????????? ??????????????????????? | | ???????????????????# ### #??????????????????????? | | ???????????????????#???# #???????????????????????? | | ???????????????????????# ????????????????????????? | | ??????????????????????? ?????????????????????????? | | ???????????????????????#?????????????????????????? | | ?????????????????????????????????????????????????? | | ?????????????????????????????????????????????????? | | ?????????????????????????????????????????????????? | | ?????????????????????????????????????????????????? | | ?????????????????????????????????????????????????? | +----------------------------------------------------+ Best States ------------- Heat Dissipation 25 Energy Generation 10 Energy Capacity 250 Matter Stores 300 Matter Capacity 300 Sight Range 16 Terrain Scan Density 10 Evasion (%) 55 Targeting Accuracy 5 Item Schematics ----------------- None Robot Schematics ------------------ None Fabricated ------------ Nothing Repaired ---------- Nothing Studied --------- None Alien Tech Used ----------------- None Achievements -------------- None Challenges ------------ None Game ------ Seed LightSpacefoldAnalyzer Manual? 0 Play Time 00:20:17 Cumulative 26.1 hours Start 2025.10.26 @ 16:52:00 End 2025.10.26 @ 17:13:54 Sessions 1 Manual Loads 0 Difficulty Rogue Special Mode None Game No. 32 Rogue 32 Adventurer 0 Explorer 0 Win Type - Total 0 Types 0/0/0/0/0/0/0/0/0/0 Lore% 18 Gallery% 26 Achievement% 19 Wizard Run 0 Options --------- Layout 2 ASCII 0 Keyboard 0 Movement Mouse Keybinds 0 Fullscreen 1 Font 24/Smallcaps Map View 50x44 Zoom Use 0% Tactical HUD 0 Map Filters NONE Filters NONE Steam 1 RUN: 17a1007d-42cb-4cd3-9293-ee9eac776c51